[Event "Dam-SM i Blixtschack"]
[Site "Goteborgs Schackcentrum, Vegatan 20, Gothenburg, Sweden"]
[Date "2024.12.07"]
[Round "4.3"]
[White "Nilsson, Elin"]
[Black "Olsson, Linn"]
[Result "0-1"]
[TimeControl "3 minutes + 2 seconds per move from move one"]
[WhiteFideId "1790749"]
[BlackFideId "1722514"]
[WhiteElo "1509"]
[BlackElo "1890"]

1. d4 {[%clk 00:03:02]} {[%emt 00:00:02]} d5 {[%clk 00:03:04]} {[%emt
00:00:01]} 2. e3 {[%clk 00:03:02]} Nc6 {[%clk 00:03:05]} {[%emt 00:00:01]} 3.
Nf3 {[%clk 00:03:01]} {[%emt 00:00:03]} Bg4 {[%clk 00:03:06]} {[%emt 00:00:01]}
4. Nc3 {[%clk 00:02:57]} {[%emt 00:00:06]} Nf6 {[%clk 00:03:07]} 5. Bd2 {[%clk
00:02:56]} {[%emt 00:00:03]} e6 {[%clk 00:03:08]} 6. Be2 {[%clk 00:02:57]}
{[%emt 00:00:01]} Bb4 {[%clk 00:03:08]} {[%emt 00:00:03]} 7. Nb5 {[%clk
00:02:49]} {[%emt 00:00:10]} Bxd2+ {[%clk 00:03:05]} {[%emt 00:00:04]} 8. Qxd2
{[%clk 00:02:36]} {[%emt 00:00:14]} a6 {[%clk 00:03:06]} {[%emt 00:00:02]} 9.
Nc3 {[%clk 00:02:36]} {[%emt 00:00:02]} O-O {[%clk 00:03:07]} {[%emt 00:00:01]}
10. h3 {[%clk 00:02:36]} {[%emt 00:00:03]} Bh5 {[%clk 00:03:07]} {[%emt
00:00:01]} 11. a3 {[%clk 00:02:23]} {[%emt 00:00:15]} Re8 {[%clk 00:03:07]}
{[%emt 00:00:02]} 12. O-O {[%clk 00:02:23]} {[%emt 00:00:02]} e5 {[%clk
00:03:01]} {[%emt 00:00:08]} 13. dxe5 {[%clk 00:02:11]} {[%emt 00:00:13]} Nxe5
{[%clk 00:03:02]} {[%emt 00:00:02]} 14. Nxe5 {[%clk 00:01:59]} {[%emt
00:00:14]} Rxe5 {[%clk 00:03:03]} {[%emt 00:00:01]} 15. Rfe1 {[%clk 00:01:56]}
{[%emt 00:00:05]} Bxe2 {[%clk 00:02:57]} {[%emt 00:00:07]} 16. Nxe2 {[%clk
00:01:53]} {[%emt 00:00:06]} Ne4 {[%clk 00:02:56]} {[%emt 00:00:03]} 17. Qa5
{[%clk 00:01:48]} {[%emt 00:00:07]} b6 {[%clk 00:02:50]} {[%emt 00:00:08]} 18.
Qa4 {[%clk 00:01:48]} {[%emt 00:00:02]} Rg5 {[%clk 00:02:44]} {[%emt 00:00:07]}
19. b4 {[%clk 00:01:43]} {[%emt 00:00:07]} Nd2 {[%clk 00:02:44]} {[%emt
00:00:02]} 20. Red1 {[%clk 00:01:14]} {[%emt 00:00:31]} Nf3+ {[%clk 00:02:39]}
{[%emt 00:00:06]} 21. Kf1 {[%clk 00:01:14]} {[%emt 00:00:02]} Nh4 {[%clk
00:02:30]} {[%emt 00:00:11]} 22. Ng3 {[%clk 00:01:06]} {[%emt 00:00:10]} Qf6
{[%clk 00:02:23]} {[%emt 00:00:09]} 23. Rd2 {[%clk 00:00:58]} {[%emt 00:00:10]}
Rxg3 {[%clk 00:02:23]} {[%emt 00:00:02]} 24. Rxd5 {[%clk 00:00:37]} {[%emt
00:00:23]} Qxa1+ {[%clk 00:02:20]} {[%emt 00:00:05]} 25. Ke2 {[%clk 00:00:34]}
{[%emt 00:00:05]} Rg6 {[%clk 00:02:06]} {[%emt 00:00:16]} 26. Rd1 {[%clk
00:00:25]} {[%emt 00:00:11]} Qf6 {[%clk 00:02:05]} {[%emt 00:00:02]} 27. f3
{[%clk 00:00:24]} {[%emt 00:00:03]} Nxg2 {[%clk 00:02:05]} {[%emt 00:00:02]} 28.
Qb3 {[%clk 00:00:20]} {[%emt 00:00:05]} Nh4 {[%clk 00:01:56]} {[%emt 00:00:11]}
29. c4 {[%clk 00:00:17]} {[%emt 00:00:05]} Qxf3+ {[%clk 00:01:57]} {[%emt
00:00:01]} 30. Kd2 {[%clk 00:00:18]} {[%emt 00:00:02]} Rd6+ {[%clk 00:01:57]}
{[%emt 00:00:02]} 31. Kc1 {[%clk 00:00:19]} Rxd1+ {[%clk 00:01:55]} {[%emt
00:00:04]} 32. Qxd1 {[%clk 00:00:20]} {[%emt 00:00:01]} Qxd1+ {[%clk 00:01:56]}
{[%emt 00:00:01]} 33. Kxd1 {[%clk 00:00:20]} {[%emt 00:00:01]} Rd8+ {[%clk
00:01:58]} 34. Kc2 {[%clk 00:00:21]} {[%emt 00:00:02]} Nf3 {[%clk 00:01:59]}
{[%emt 00:00:01]} 35. Kb3 {[%clk 00:00:20]} {[%emt 00:00:02]} Rd3+ {[%clk
00:02:00]} 36. Kc2 {[%clk 00:00:20]} {[%emt 00:00:02]} Rxe3 {[%clk 00:02:01]}
37. c5 {[%clk 00:00:22]} Rxa3 {[%clk 00:02:02]} {[%emt 00:00:01]} 38. h4 {[%clk
00:00:21]} {[%emt 00:00:03]} Nd4+ {[%clk 00:02:03]} {[%emt 00:00:01]} 39. Kd2
{[%clk 00:00:21]} {[%emt 00:00:02]} bxc5 {[%emt 00:00:02]} 40. bxc5 {[%clk
00:00:21]} f5 {[%clk 00:02:05]} 41. Kc1 {[%clk 00:00:18]} {[%emt 00:00:05]} Ra2
{[%clk 00:02:06]} {[%emt 00:00:01]} 42. Kb1 {[%clk 00:00:18]} {[%emt 00:00:01]}
Rh2 {[%clk 00:02:05]} 43. Kc1 {[%clk 00:00:18]} Kf7 {[%clk 00:02:06]} {[%emt
00:00:05]} 44. Kd1 {[%clk 00:00:19]} Ke6 {[%clk 00:02:08]} {[%emt 00:00:02]} 45.
Ke1 {[%clk 00:00:20]} Kd5 {[%clk 00:02:08]} {[%emt 00:00:03]} 46. c6 {[%clk
00:00:20]} Ke4 {[%clk 00:02:09]} {[%emt 00:00:02]} 47. Kf1 {[%clk 00:00:21]}
Ra2 {[%clk 00:02:10]} {[%emt 00:00:02]} 48. Kg1 {[%clk 00:00:22]} Kf3 {[%clk
00:02:10]} {[%emt 00:00:02]} 49. h5 {[%clk 00:00:23]} Ra1+ {[%emt 00:00:02]} 50.
Kf1 {[%clk 00:00:23]} 0-1

[Event "Dam-SM i Blixtschack"]
[Site "Goteborgs Schackcentrum, Vegatan 20, Gothenburg, Sweden"]
[Date "2024.12.07"]
[Round "8.1"]
[White "Nilsson, Elin"]
[Black "Isurina Mariano, Cristine Rose"]
[Result "0-1"]
[TimeControl "3 minutes + 2 seconds per move from move one"]
[BlackTitle "WIM"]
[WhiteFideId "1790749"]
[BlackFideId "5201071"]
[WhiteElo "1509"]
[BlackElo "1920"]

1. d4 {[%clk 00:03:01]} {[%emt 00:00:02]} e6 {[%clk 00:03:03]} {[%emt
00:00:02]} 2. c4 {[%clk 00:02:58]} {[%emt 00:00:04]} b6 {[%clk 00:03:05]} 3.
Nc3 {[%clk 00:02:53]} {[%emt 00:00:07]} Bb7 {[%clk 00:03:06]} 4. e4 {[%clk
00:02:45]} {[%emt 00:00:10]} Bb4 {[%clk 00:03:07]} 5. Bd2 {[%clk 00:02:46]}
{[%emt 00:00:01]} Bxc3 {[%clk 00:03:07]} {[%emt 00:00:01]} 6. Bxc3 {[%clk
00:02:46]} {[%emt 00:00:02]} Bxe4 {[%clk 00:03:08]} 7. Qg4 {[%clk 00:02:35]}
{[%emt 00:00:13]} Bg6 {[%clk 00:03:02]} {[%emt 00:00:08]} 8. d5 {[%clk
00:02:28]} {[%emt 00:00:10]} Nf6 {[%clk 00:03:03]} {[%emt 00:00:01]} 9. Qf3
{[%clk 00:02:17]} {[%emt 00:00:12]} exd5 {[%clk 00:03:03]} {[%emt 00:00:02]} 10.
cxd5 {[%clk 00:02:16]} {[%emt 00:00:03]} Qe7+ {[%clk 00:03:03]} {[%emt
00:00:02]} 11. Be2 {[%clk 00:02:16]} {[%emt 00:00:02]} O-O {[%clk 00:03:04]}
{[%emt 00:00:02]} 12. Qf4 {[%clk 00:02:09]} {[%emt 00:00:10]} d6 {[%clk
00:03:02]} {[%emt 00:00:03]} 13. Nf3 {[%clk 00:02:03]} {[%emt 00:00:07]} Nbd7
{[%clk 00:03:03]} {[%emt 00:00:02]} 14. O-O {[%clk 00:02:03]} {[%emt 00:00:02]}
Qxe2 {[%clk 00:03:03]} {[%emt 00:00:02]} 15. Ng5 {[%clk 00:01:49]} {[%emt
00:00:16]} Qh5 {[%clk 00:02:46]} {[%emt 00:00:19]} 16. h3 {[%clk 00:01:38]}
{[%emt 00:00:14]} Rae8 {[%clk 00:02:45]} {[%emt 00:00:03]} 17. Nf3 {[%clk
00:01:27]} {[%emt 00:00:13]} Nxd5 {[%clk 00:02:43]} {[%emt 00:00:05]} 18. Qc4
{[%clk 00:01:22]} {[%emt 00:00:07]} Nxc3 {[%clk 00:02:43]} {[%emt 00:00:03]} 19.
bxc3 {[%clk 00:01:11]} {[%emt 00:00:12]} c5 {[%clk 00:02:44]} {[%emt 00:00:02]}
20. a4 {[%clk 00:01:10]} {[%emt 00:00:03]} Ne5 {[%clk 00:02:45]} 21. Nxe5
{[%clk 00:00:55]} {[%emt 00:00:16]} Rxe5 {[%clk 00:02:46]} 22. a5 {[%clk
00:00:52]} {[%emt 00:00:06]} Re4 {[%clk 00:02:40]} {[%emt 00:00:08]} 23. Qa6
{[%clk 00:00:44]} {[%emt 00:00:10]} bxa5 {[%clk 00:02:35]} {[%emt 00:00:07]} 24.
Qxa5 {[%clk 00:00:37]} {[%emt 00:00:09]} Re2 {[%clk 00:02:28]} {[%emt
00:00:09]} 25. Qxa7 {[%clk 00:00:31]} {[%emt 00:00:08]} Be4 {[%clk 00:02:28]}
{[%emt 00:00:01]} 26. Ra2 {[%clk 00:00:17]} {[%emt 00:00:16]} Qg6 {[%clk
00:02:26]} {[%emt 00:00:03]} 27. g3 {[%clk 00:00:08]} {[%emt 00:00:11]} Rxa2
{[%clk 00:02:20]} {[%emt 00:00:08]} 28. Qxa2 {[%clk 00:00:09]} {[%emt
00:00:02]} d5 {[%clk 00:02:22]} 29. Qe2 {[%clk 00:00:07]} {[%emt 00:00:04]} c4
{[%clk 00:02:22]} {[%emt 00:00:02]} 30. Qb2 {[%clk 00:00:03]} {[%emt 00:00:05]}
Bf3 {[%clk 00:02:21]} {[%emt 00:00:03]} 0-1